{"text_format":"1","workbook":"xlsx","n_sheets":4,"sheets":["TCO bij verduurzaming","TCO zonder verduurzaming","Uitgangspunten","Sheet1"],"not_rendered":{"charts":0,"images":0,"macros":1,"external_links":0,"defined_names":2,"comments":0,"pivot_tables":0},"unopened":[],"bounds":{"document_bytes":16777216,"sheet_cells":100000,"rows_first":2000,"rows_last":500,"rows_between":2000,"halvings":0,"cell_chars":16384,"cell_head_chars":4096},"cells_cut":0,"cells_raw":0,"read":"whole","date_system":"1900"}

{"sheet":"TCO bij verduurzaming","index":0,"n_rows":96,"n_cols":9,"rows_kept":96,"cut":false,"hidden":false,"merged":[[0,1,0,7],[5,5,5,6],[4,3,4,4],[5,3,5,4],[6,3,6,4],[3,2,3,6],[83,1,83,6],[84,1,84,6],[82,1,82,7],[86,1,86,6],[4,5,4,6],[6,5,6,6],[67,1,67,3],[68,1,68,3],[69,1,69,3],[70,1,70,3],[63,1,63,3],[65,1,65,3],[66,1,66,3],[74,1,74,3],[75,1,75,3],[76,1,76,7],[80,1,80,6],[79,1,79,6],[8,1,8,7],[95,1,95,6],[92,1,92,4],[88,1,88,4],[89,1,89,7],[90,1,90,6],[91,1,91,6],[93,1,93,7],[94,1,94,6],[85,1,85,6],[77,1,77,6],[78,1,78,6],[87,1,87,6],[71,1,71,3],[72,1,72,3],[73,1,73,3]]}
[null,"TCO Meetlat voor berekening en vergelijking van integrale kosten van verduurzamingsprojecten"]
[]
[null,"Instructie: Vul alleen de geel gearceerde cellen in"]
["Stap 1","Naam project"]
[null,"Woningtype",null,"Totaal aantal woningen"]
[null,"Huidig(e) energielabel(s)",null,"Te realiseren energielabel "]
[null,"Jaar labelopname",null,"Naar aardgasvrij ja / nee?"]
[]
[null,"Geoffreerde directe kosten gemiddeld per woning bij verduurzaming (inclusief BTW)"]
["Stap 2","Investeringen in installaties","Kosten materiaal & materieel","Arbeidskosten","Subtotaal","Levensduur in jaren","Rentekosten totaal","Kosten per jaar"]
[null,null,null,null,{"$f":"SUM(C11:D11)","v":0},null,{"$f":"IF(E11>0,(IF(ISBLANK(F11),\"Vul levensduur in\",-PMT(Uitgangspunten!$B$7,'TCO bij verduurzaming'!F11,'TCO bij verduurzaming'!E11)*F11-E11)),0)","v":0},{"$f":"IF(ISBLANK(F11),\"Vul levensduur in\",(E11+G11)/F11)","v":"Vul levensduur in"}]
[null,null,null,null,{"$f":"SUM(C12:D12)","v":0},null,{"$f":"IF(E12>0,(IF(ISBLANK(F12),\"Vul levensduur in\",-PMT(Uitgangspunten!$B$7,'TCO bij verduurzaming'!F12,'TCO bij verduurzaming'!E12)*F12-E12)),0)","v":0},"Vul levensduur in"]
[null,null,null,null,0,null,{"$f":"IF(E13>0,(IF(ISBLANK(F13),\"Vul levensduur in\",-PMT(Uitgangspunten!$B$7,'TCO bij verduurzaming'!F13,'TCO bij verduurzaming'!E13)*F13-E13)),0)","v":0},"Vul levensduur in"]
[null,null,null,null,0,null,{"$f":"IF(E14>0,(IF(ISBLANK(F14),\"Vul levensduur in\",-PMT(Uitgangspunten!$B$7,'TCO bij verduurzaming'!F14,'TCO bij verduurzaming'!E14)*F14-E14)),0)","v":0},"Vul levensduur in"]
[null,null,null,null,0,null,{"$f":"IF(E15>0,(IF(ISBLANK(F15),\"Vul levensduur in\",-PMT(Uitgangspunten!$B$7,'TCO bij verduurzaming'!F15,'TCO bij verduurzaming'!E15)*F15-E15)),0)","v":0},"Vul levensduur in"]
[null,null,null,null,0,null,{"$f":"IF(E16>0,(IF(ISBLANK(F16),\"Vul levensduur in\",-PMT(Uitgangspunten!$B$7,'TCO bij verduurzaming'!F16,'TCO bij verduurzaming'!E16)*F16-E16)),0)","v":0},"Vul levensduur in"]
[null,null,null,null,0,null,{"$f":"IF(E17>0,(IF(ISBLANK(F17),\"Vul levensduur in\",-PMT(Uitgangspunten!$B$7,'TCO bij verduurzaming'!F17,'TCO bij verduurzaming'!E17)*F17-E17)),0)","v":0},"Vul levensduur in"]
[null,null,null,null,0,null,{"$f":"IF(E18>0,(IF(ISBLANK(F18),\"Vul levensduur in\",-PMT(Uitgangspunten!$B$7,'TCO bij verduurzaming'!F18,'TCO bij verduurzaming'!E18)*F18-E18)),0)","v":0},"Vul levensduur in"]
[null,null,null,null,0,null,{"$f":"IF(E19>0,(IF(ISBLANK(F19),\"Vul levensduur in\",-PMT(Uitgangspunten!$B$7,'TCO bij verduurzaming'!F19,'TCO bij verduurzaming'!E19)*F19-E19)),0)","v":0},"Vul levensduur in"]
[null,null,null,null,0,null,{"$f":"IF(E20>0,(IF(ISBLANK(F20),\"Vul levensduur in\",-PMT(Uitgangspunten!$B$7,'TCO bij verduurzaming'!F20,'TCO bij verduurzaming'!E20)*F20-E20)),0)","v":0},"Vul levensduur in"]
[null,null,null,null,0,null,{"$f":"IF(E21>0,(IF(ISBLANK(F21),\"Vul levensduur in\",-PMT(Uitgangspunten!$B$7,'TCO bij verduurzaming'!F21,'TCO bij verduurzaming'!E21)*F21-E21)),0)","v":0},"Vul levensduur in"]
[null,null,null,null,0,null,{"$f":"IF(E22>0,(IF(ISBLANK(F22),\"Vul levensduur in\",-PMT(Uitgangspunten!$B$7,'TCO bij verduurzaming'!F22,'TCO bij verduurzaming'!E22)*F22-E22)),0)","v":0},"Vul levensduur in"]
[null,null,null,null,0,null,{"$f":"IF(E23>0,(IF(ISBLANK(F23),\"Vul levensduur in\",-PMT(Uitgangspunten!$B$7,'TCO bij verduurzaming'!F23,'TCO bij verduurzaming'!E23)*F23-E23)),0)","v":0},"Vul levensduur in"]
[null,null,null,null,0,null,{"$f":"IF(E24>0,(IF(ISBLANK(F24),\"Vul levensduur in\",-PMT(Uitgangspunten!$B$7,'TCO bij verduurzaming'!F24,'TCO bij verduurzaming'!E24)*F24-E24)),0)","v":0},"Vul levensduur in"]
[null,null,null,null,0,null,{"$f":"IF(E25>0,(IF(ISBLANK(F25),\"Vul levensduur in\",-PMT(Uitgangspunten!$B$7,'TCO bij verduurzaming'!F25,'TCO bij verduurzaming'!E25)*F25-E25)),0)","v":0},"Vul levensduur in"]
[null,null,null,null,0,null,{"$f":"IF(E26>0,(IF(ISBLANK(F26),\"Vul levensduur in\",-PMT(Uitgangspunten!$B$7,'TCO bij verduurzaming'!F26,'TCO bij verduurzaming'!E26)*F26-E26)),0)","v":0},"Vul levensduur in"]
[null,null,null,null,0,null,{"$f":"IF(E27>0,(IF(ISBLANK(F27),\"Vul levensduur in\",-PMT(Uitgangspunten!$B$7,'TCO bij verduurzaming'!F27,'TCO bij verduurzaming'!E27)*F27-E27)),0)","v":0},"Vul levensduur in"]
[null,null,null,null,0,null,{"$f":"IF(E28>0,(IF(ISBLANK(F28),\"Vul levensduur in\",-PMT(Uitgangspunten!$B$7,'TCO bij verduurzaming'!F28,'TCO bij verduurzaming'!E28)*F28-E28)),0)","v":0},"Vul levensduur in"]
[null,null,null,null,0,null,{"$f":"IF(E29>0,(IF(ISBLANK(F29),\"Vul levensduur in\",-PMT(Uitgangspunten!$B$7,'TCO bij verduurzaming'!F29,'TCO bij verduurzaming'!E29)*F29-E29)),0)","v":0},"Vul levensduur in"]
[null,null,null,null,0,null,{"$f":"IF(E30>0,(IF(ISBLANK(F30),\"Vul levensduur in\",-PMT(Uitgangspunten!$B$7,'TCO bij verduurzaming'!F30,'TCO bij verduurzaming'!E30)*F30-E30)),0)","v":0},"Vul levensduur in"]
[null,null,null,null,0,null,{"$f":"IF(E31>0,(IF(ISBLANK(F31),\"Vul levensduur in\",-PMT(Uitgangspunten!$B$7,'TCO bij verduurzaming'!F31,'TCO bij verduurzaming'!E31)*F31-E31)),0)","v":0},"Vul levensduur in"]
[null,null,null,null,0,null,{"$f":"IF(E32>0,(IF(ISBLANK(F32),\"Vul levensduur in\",-PMT(Uitgangspunten!$B$7,'TCO bij verduurzaming'!F32,'TCO bij verduurzaming'!E32)*F32-E32)),0)","v":0},"Vul levensduur in"]
[null,null,null,null,0,null,{"$f":"IF(E33>0,(IF(ISBLANK(F33),\"Vul levensduur in\",-PMT(Uitgangspunten!$B$7,'TCO bij verduurzaming'!F33,'TCO bij verduurzaming'!E33)*F33-E33)),0)","v":0},"Vul levensduur in"]
[null,null,null,null,0,null,{"$f":"IF(E34>0,(IF(ISBLANK(F34),\"Vul levensduur in\",-PMT(Uitgangspunten!$B$7,'TCO bij verduurzaming'!F34,'TCO bij verduurzaming'!E34)*F34-E34)),0)","v":0},"Vul levensduur in"]
[null,null,null,null,0,null,{"$f":"IF(E35>0,(IF(ISBLANK(F35),\"Vul levensduur in\",-PMT(Uitgangspunten!$B$7,'TCO bij verduurzaming'!F35,'TCO bij verduurzaming'!E35)*F35-E35)),0)","v":0},"Vul levensduur in"]
[null,"Subtotaal investeringen in installaties",{"$f":"SUM(C11:C35)","v":0},{"$f":"SUM(D11:D35)","v":0},{"$f":"SUM(E11:E35)","v":0},"Subtotaal per jaar",{"$f":"SUM(G11:G35)","v":0},{"$f":"SUM(H11:H35)","v":0}]
["Stap 3","Investeringen in bouwkundige maatregelen","Kosten materiaal & materieel","Arbeidskosten","Subtotaal","Levensduur in jaren","Rentekosten totaal","Kosten per jaar"]
[null,null,null,null,{"$f":"SUM(C38:D38)","v":0},null,{"$f":"IF(E38>0,(IF(ISBLANK(F38),\"Vul levensduur in\",-PMT(Uitgangspunten!$B$7,'TCO bij verduurzaming'!F38,'TCO bij verduurzaming'!E38)*F38-E38)),0)","v":0},{"$f":"IF(ISBLANK(F38),\"Vul levensduur in\",(E38+G38)/F38)","v":"Vul levensduur in"}]
[null,null,null,null,{"$f":"SUM(C39:D39)","v":0},null,{"$f":"IF(E39>0,(IF(ISBLANK(F39),\"Vul levensduur in\",-PMT(Uitgangspunten!$B$7,'TCO bij verduurzaming'!F39,'TCO bij verduurzaming'!E39)*F39-E39)),0)","v":0},"Vul levensduur in"]
[null,null,null,null,0,null,{"$f":"IF(E40>0,(IF(ISBLANK(F40),\"Vul levensduur in\",-PMT(Uitgangspunten!$B$7,'TCO bij verduurzaming'!F40,'TCO bij verduurzaming'!E40)*F40-E40)),0)","v":0},"Vul levensduur in"]
[null,null,null,null,0,null,{"$f":"IF(E41>0,(IF(ISBLANK(F41),\"Vul levensduur in\",-PMT(Uitgangspunten!$B$7,'TCO bij verduurzaming'!F41,'TCO bij verduurzaming'!E41)*F41-E41)),0)","v":0},"Vul levensduur in"]
[null,null,null,null,0,null,{"$f":"IF(E42>0,(IF(ISBLANK(F42),\"Vul levensduur in\",-PMT(Uitgangspunten!$B$7,'TCO bij verduurzaming'!F42,'TCO bij verduurzaming'!E42)*F42-E42)),0)","v":0},"Vul levensduur in"]
[null,null,null,null,0,null,{"$f":"IF(E43>0,(IF(ISBLANK(F43),\"Vul levensduur in\",-PMT(Uitgangspunten!$B$7,'TCO bij verduurzaming'!F43,'TCO bij verduurzaming'!E43)*F43-E43)),0)","v":0},"Vul levensduur in"]
[null,null,null,null,0,null,{"$f":"IF(E44>0,(IF(ISBLANK(F44),\"Vul levensduur in\",-PMT(Uitgangspunten!$B$7,'TCO bij verduurzaming'!F44,'TCO bij verduurzaming'!E44)*F44-E44)),0)","v":0},"Vul levensduur in"]
[null,null,null,null,0,null,{"$f":"IF(E45>0,(IF(ISBLANK(F45),\"Vul levensduur in\",-PMT(Uitgangspunten!$B$7,'TCO bij verduurzaming'!F45,'TCO bij verduurzaming'!E45)*F45-E45)),0)","v":0},"Vul levensduur in"]
[null,null,null,null,0,null,{"$f":"IF(E46>0,(IF(ISBLANK(F46),\"Vul levensduur in\",-PMT(Uitgangspunten!$B$7,'TCO bij verduurzaming'!F46,'TCO bij verduurzaming'!E46)*F46-E46)),0)","v":0},"Vul levensduur in"]
[null,null,null,null,0,null,{"$f":"IF(E47>0,(IF(ISBLANK(F47),\"Vul levensduur in\",-PMT(Uitgangspunten!$B$7,'TCO bij verduurzaming'!F47,'TCO bij verduurzaming'!E47)*F47-E47)),0)","v":0},"Vul levensduur in"]
[null,null,null,null,0,null,{"$f":"IF(E48>0,(IF(ISBLANK(F48),\"Vul levensduur in\",-PMT(Uitgangspunten!$B$7,'TCO bij verduurzaming'!F48,'TCO bij verduurzaming'!E48)*F48-E48)),0)","v":0},"Vul levensduur in"]
[null,null,null,null,0,null,{"$f":"IF(E49>0,(IF(ISBLANK(F49),\"Vul levensduur in\",-PMT(Uitgangspunten!$B$7,'TCO bij verduurzaming'!F49,'TCO bij verduurzaming'!E49)*F49-E49)),0)","v":0},"Vul levensduur in"]
[null,null,null,null,0,null,{"$f":"IF(E50>0,(IF(ISBLANK(F50),\"Vul levensduur in\",-PMT(Uitgangspunten!$B$7,'TCO bij verduurzaming'!F50,'TCO bij verduurzaming'!E50)*F50-E50)),0)","v":0},"Vul levensduur in"]
[null,null,null,null,0,null,{"$f":"IF(E51>0,(IF(ISBLANK(F51),\"Vul levensduur in\",-PMT(Uitgangspunten!$B$7,'TCO bij verduurzaming'!F51,'TCO bij verduurzaming'!E51)*F51-E51)),0)","v":0},"Vul levensduur in"]
[null,null,null,null,0,null,{"$f":"IF(E52>0,(IF(ISBLANK(F52),\"Vul levensduur in\",-PMT(Uitgangspunten!$B$7,'TCO bij verduurzaming'!F52,'TCO bij verduurzaming'!E52)*F52-E52)),0)","v":0},"Vul levensduur in"]
[null,null,null,null,0,null,{"$f":"IF(E53>0,(IF(ISBLANK(F53),\"Vul levensduur in\",-PMT(Uitgangspunten!$B$7,'TCO bij verduurzaming'!F53,'TCO bij verduurzaming'!E53)*F53-E53)),0)","v":0},"Vul levensduur in"]
[null,null,null,null,0,null,{"$f":"IF(E54>0,(IF(ISBLANK(F54),\"Vul levensduur in\",-PMT(Uitgangspunten!$B$7,'TCO bij verduurzaming'!F54,'TCO bij verduurzaming'!E54)*F54-E54)),0)","v":0},"Vul levensduur in"]
[null,null,null,null,0,null,{"$f":"IF(E55>0,(IF(ISBLANK(F55),\"Vul levensduur in\",-PMT(Uitgangspunten!$B$7,'TCO bij verduurzaming'!F55,'TCO bij verduurzaming'!E55)*F55-E55)),0)","v":0},"Vul levensduur in"]
[null,null,null,null,0,null,{"$f":"IF(E56>0,(IF(ISBLANK(F56),\"Vul levensduur in\",-PMT(Uitgangspunten!$B$7,'TCO bij verduurzaming'!F56,'TCO bij verduurzaming'!E56)*F56-E56)),0)","v":0},"Vul levensduur in"]
[null,null,null,null,0,null,{"$f":"IF(E57>0,(IF(ISBLANK(F57),\"Vul levensduur in\",-PMT(Uitgangspunten!$B$7,'TCO bij verduurzaming'!F57,'TCO bij verduurzaming'!E57)*F57-E57)),0)","v":0},"Vul levensduur in"]
[null,null,null,null,0,null,{"$f":"IF(E58>0,(IF(ISBLANK(F58),\"Vul levensduur in\",-PMT(Uitgangspunten!$B$7,'TCO bij verduurzaming'!F58,'TCO bij verduurzaming'!E58)*F58-E58)),0)","v":0},"Vul levensduur in"]
[null,null,null,null,0,null,{"$f":"IF(E59>0,(IF(ISBLANK(F59),\"Vul levensduur in\",-PMT(Uitgangspunten!$B$7,'TCO bij verduurzaming'!F59,'TCO bij verduurzaming'!E59)*F59-E59)),0)","v":0},"Vul levensduur in"]
[null,null,null,null,0,null,{"$f":"IF(E60>0,(IF(ISBLANK(F60),\"Vul levensduur in\",-PMT(Uitgangspunten!$B$7,'TCO bij verduurzaming'!F60,'TCO bij verduurzaming'!E60)*F60-E60)),0)","v":0},"Vul levensduur in"]
[null,null,null,null,0,null,{"$f":"IF(E61>0,(IF(ISBLANK(F61),\"Vul levensduur in\",-PMT(Uitgangspunten!$B$7,'TCO bij verduurzaming'!F61,'TCO bij verduurzaming'!E61)*F61-E61)),0)","v":0},"Vul levensduur in"]
[null,null,null,null,0,null,{"$f":"IF(E62>0,(IF(ISBLANK(F62),\"Vul levensduur in\",-PMT(Uitgangspunten!$B$7,'TCO bij verduurzaming'!F62,'TCO bij verduurzaming'!E62)*F62-E62)),0)","v":0},"Vul levensduur in"]
[null,"Subtotaal investeringen in bouwkundige maatregelen",{"$f":"SUM(C38:C62)","v":0},{"$f":"SUM(D38:D62)","v":0},{"$f":"SUM(E38:E62)","v":0},"Subtotaal per jaar",{"$f":"SUM(G38:G62)","v":0},{"$f":"SUM(H38:H62)","v":0}]
["Stap 4","Gemiddelde indirecte kosten per woning",null,null,"Subtotaal","Levensduur in jaren","Rentekosten totaal","Kosten per jaar"]
[null,"Onderzoek, ontwerp & projectontwikkelingskosten",null,null,0,{"$f":"+Uitgangspunten!$B$4","v":30},{"$f":"IF(E65>0,-PMT(Uitgangspunten!$B$7,'TCO bij verduurzaming'!F65,'TCO bij verduurzaming'!E65)*F65-E65,0)","v":0},{"$f":"IF(E65>0,((E65+G65)/F65),0)","v":0}]
[null,"Algemene bouwplaatskosten",null,null,0,{"$f":"+Uitgangspunten!$B$4","v":30},{"$f":"IF(E66>0,-PMT(Uitgangspunten!$B$7,'TCO bij verduurzaming'!F66,'TCO bij verduurzaming'!E66)*F66-E66,0)","v":0},0]
[null,"Coördinatiekosten",null,null,0,{"$f":"+Uitgangspunten!$B$4","v":30},{"$f":"IF(E67>0,-PMT(Uitgangspunten!$B$7,'TCO bij verduurzaming'!F67,'TCO bij verduurzaming'!E67)*F67-E67,0)","v":0},0]
[null,"Algemene kosten",null,null,0,{"$f":"+Uitgangspunten!$B$4","v":30},{"$f":"IF(E68>0,-PMT(Uitgangspunten!$B$7,'TCO bij verduurzaming'!F68,'TCO bij verduurzaming'!E68)*F68-E68,0)","v":0},0]
[null,"Verzekeringen",null,null,0,{"$f":"+Uitgangspunten!$B$4","v":30},{"$f":"IF(E69>0,-PMT(Uitgangspunten!$B$7,'TCO bij verduurzaming'!F69,'TCO bij verduurzaming'!E69)*F69-E69,0)","v":0},0]
[null,"Winst & risico",null,null,0,{"$f":"+Uitgangspunten!$B$4","v":30},{"$f":"IF(E70>0,-PMT(Uitgangspunten!$B$7,'TCO bij verduurzaming'!F70,'TCO bij verduurzaming'!E70)*F70-E70,0)","v":0},0]
[null,"Subtotaal indirecte kosten per woning",null,null,{"$f":"SUM(E65:E70)","v":0},"Subtotaal per jaar",{"$f":"SUM(G65:G70)","v":0},{"$f":"SUM(H65:H70)","v":0}]
["Stap 5","Gemiddelde bewonersbegeleidingskosten per woning",null,null,"Subtotaal","Levensduur in jaren","Rentekosten totaal","Kosten per jaar"]
[null,"Bewonerscommunicatie",null,null,0,{"$f":"+Uitgangspunten!$B$4","v":30},{"$f":"IF(E73>0,-PMT(Uitgangspunten!$B$7,'TCO bij verduurzaming'!F73,'TCO bij verduurzaming'!E73)*F73-E73,0)","v":0},{"$f":"IF(E73>0,((E73+G73)/F73),0)","v":0}]
[null,"Tijdelijke herhuisvestingskosten en/of bewonerscompensatie",null,null,0,{"$f":"+Uitgangspunten!$B$4","v":30},{"$f":"IF(E74>0,-PMT(Uitgangspunten!$B$7,'TCO bij verduurzaming'!F74,'TCO bij verduurzaming'!E74)*F74-E74,0)","v":0},{"$f":"IF(E74>0,((E74+G74)/F74),0)","v":0}]
[null,"Subtotaal bewonersbegeleidingskosten per woning",null,null,{"$f":"SUM(E73:E74)","v":0},"Subtotaal per jaar",{"$f":"SUM(G73:G74)","v":0},{"$f":"SUM(H73:H74)","v":0}]
[null,"Totale aanneemsom per woning",null,null,{"$f":"E36+E63+E71+E75","v":0},"Subtotaal per jaar",{"$f":"G36+G63+G71+G75","v":0},{"$f":"H36+H63+H71+H75","v":0}]
["Stap 6","Onderhoudskosten (exclusief vervanginginvesteringen) per woning"]
[null,"Installatietechnisch onderhoud voor alle aanwezige installaties per jaar ",null,null,null,null,null,0]
[null,"Bouwkundig onderhoud voor de complete woning per jaar",null,null,null,null,null,0]
[null,"Onderhoudskosten per woning per jaar (exclusief indexatie)",null,null,null,null,null,{"$f":"SUM(H78:H79)","v":0}]
[null,"Totale kosten per woning per jaar (inclusief BTW)",null,null,null,null,null,{"$f":"H76+H80","v":0}]
[]
["Stap 7","Inkomsten gemiddeld per woning per jaar (inclusief BTW en exclusief prijsinflatie)"]
[null,"Jaarlijkse extra inkomsten uit huurverhoging op basis van NOM-EPV of Vergoedingentabel Companen",null,null,null,null,null,0]
[null,"Jaarlijkse extra inkomsten uit servicekosten verhoging bij zon-pv",null,null,null,null,null,0]
[null,"Andere eenmalige inkomsten (bijvoorbeeld ISDE subsidie)",null,null,null,null,null,0]
[null,"Andere eenmalige inkomsten omgerekend naar jaarlijkse inkomsten",null,null,null,null,null,{"$f":"+H86/Uitgangspunten!B4","v":0}]
[null,"Totaal jaarlijkse extra inkomsten per woning (exclusief indexatie)",null,null,null,null,null,{"$f":"SUM(H84:H86)","v":0}]
[]
[null,"Berekening bruto TCO per woning bij verduurzaming"]
[null,"Bruto TCO per woning over totale periode",null,null,null,null,null,{"$f":"H92*Uitgangspunten!$B$4","v":0}]
[null,"Bruto TCO per woning per jaar",null,null,null,null,null,{"$f":"H81-$H$88","v":0},"per jaar"]
[]
[null,"Berekening netto TCO per woning met verduurzaming ten opzichte van TCO zonder verduurzaming (zie 2e tabblad)"]
[null,"Netto TCO per woning over totale periode specifiek voor de hierboven vermelde energieabel-sprong",null,null,null,null,null,{"$f":"H91-'TCO zonder verduurzaming'!H81","v":0}]
[null,"Netto TCO per woning per jaar specifiek voor de hierboven vermelde energieabel-sprong",null,null,null,null,null,{"$f":"H92-'TCO zonder verduurzaming'!H82","v":0},"per jaar"]

{"sheet":"TCO zonder verduurzaming","index":1,"n_rows":82,"n_cols":9,"rows_kept":82,"cut":false,"hidden":false,"merged":[[79,1,79,7],[80,1,80,6],[81,1,81,6],[82,1,82,4],[76,1,76,6],[77,1,77,6],[75,1,75,6],[64,1,64,3],[65,1,65,3],[66,1,66,3],[67,1,67,3],[68,1,68,3],[69,1,69,3],[70,1,70,3],[71,1,71,3],[72,1,72,3],[73,1,73,7],[74,1,74,6],[60,1,60,3],[62,1,62,3],[63,1,63,3],[0,1,0,7],[5,1,5,7],[3,2,3,6]]}
[null,"TCO Meetlat voor berekening en vergelijking van integrale kosten van verduurzamingsprojecten"]
[]
[null,"Instructie: Vul alleen de geel gearceerde cellen in"]
["Stap 1","Naam Renovatieversneller project",{"$f":"+'TCO bij verduurzaming'!C4","v":0}]
[]
[null,"Geoffreerde directe kosten gemiddeld per woning zonder verduurzaming (inclusief BTW)"]
["Stap 2","Vervangingsinvesteringen in conventionele installaties","Kosten materiaal & materieel","Arbeidskosten","Subtotaal","Levensduur in jaren","Rentekosten totaal","Kosten per jaar"]
[null,null,null,null,{"$f":"SUM(C8:D8)","v":0},null,{"$f":"IF(E8>0,(IF(ISBLANK(F8),\"Vul levensduur in\",-PMT(Uitgangspunten!$B$7,'TCO zonder verduurzaming'!F8,'TCO zonder verduurzaming'!E8)*F8-E8)),0)","v":0},{"$f":"IF(ISBLANK(F8),\"Vul levensduur in\",(E8+G8)/F8)","v":"Vul levensduur in"}]
[null,null,null,null,{"$f":"SUM(C9:D9)","v":0},null,{"$f":"IF(E9>0,(IF(ISBLANK(F9),\"Vul levensduur in\",-PMT(Uitgangspunten!$B$7,'TCO zonder verduurzaming'!F9,'TCO zonder verduurzaming'!E9)*F9-E9)),0)","v":0},{"$f":"IF(ISBLANK(F9),\"Vul levensduur in\",(E9+G9)/F9)","v":"Vul levensduur in"}]
[null,null,null,null,0,null,{"$f":"IF(E10>0,(IF(ISBLANK(F10),\"Vul levensduur in\",-PMT(Uitgangspunten!$B$7,'TCO zonder verduurzaming'!F10,'TCO zonder verduurzaming'!E10)*F10-E10)),0)","v":0},"Vul levensduur in"]
[null,null,null,null,0,null,{"$f":"IF(E11>0,(IF(ISBLANK(F11),\"Vul levensduur in\",-PMT(Uitgangspunten!$B$7,'TCO zonder verduurzaming'!F11,'TCO zonder verduurzaming'!E11)*F11-E11)),0)","v":0},"Vul levensduur in"]
[null,null,null,null,0,null,{"$f":"IF(E12>0,(IF(ISBLANK(F12),\"Vul levensduur in\",-PMT(Uitgangspunten!$B$7,'TCO zonder verduurzaming'!F12,'TCO zonder verduurzaming'!E12)*F12-E12)),0)","v":0},"Vul levensduur in"]
[null,null,null,null,0,null,{"$f":"IF(E13>0,(IF(ISBLANK(F13),\"Vul levensduur in\",-PMT(Uitgangspunten!$B$7,'TCO zonder verduurzaming'!F13,'TCO zonder verduurzaming'!E13)*F13-E13)),0)","v":0},"Vul levensduur in"]
[null,null,null,null,0,null,{"$f":"IF(E14>0,(IF(ISBLANK(F14),\"Vul levensduur in\",-PMT(Uitgangspunten!$B$7,'TCO zonder verduurzaming'!F14,'TCO zonder verduurzaming'!E14)*F14-E14)),0)","v":0},"Vul levensduur in"]
[null,null,null,null,0,null,{"$f":"IF(E15>0,(IF(ISBLANK(F15),\"Vul levensduur in\",-PMT(Uitgangspunten!$B$7,'TCO zonder verduurzaming'!F15,'TCO zonder verduurzaming'!E15)*F15-E15)),0)","v":0},"Vul levensduur in"]
[null,null,null,null,0,null,{"$f":"IF(E16>0,(IF(ISBLANK(F16),\"Vul levensduur in\",-PMT(Uitgangspunten!$B$7,'TCO zonder verduurzaming'!F16,'TCO zonder verduurzaming'!E16)*F16-E16)),0)","v":0},"Vul levensduur in"]
[null,null,null,null,0,null,{"$f":"IF(E17>0,(IF(ISBLANK(F17),\"Vul levensduur in\",-PMT(Uitgangspunten!$B$7,'TCO zonder verduurzaming'!F17,'TCO zonder verduurzaming'!E17)*F17-E17)),0)","v":0},"Vul levensduur in"]
[null,null,null,null,0,null,{"$f":"IF(E18>0,(IF(ISBLANK(F18),\"Vul levensduur in\",-PMT(Uitgangspunten!$B$7,'TCO zonder verduurzaming'!F18,'TCO zonder verduurzaming'!E18)*F18-E18)),0)","v":0},"Vul levensduur in"]
[null,null,null,null,0,null,{"$f":"IF(E19>0,(IF(ISBLANK(F19),\"Vul levensduur in\",-PMT(Uitgangspunten!$B$7,'TCO zonder verduurzaming'!F19,'TCO zonder verduurzaming'!E19)*F19-E19)),0)","v":0},"Vul levensduur in"]
[null,null,null,null,0,null,{"$f":"IF(E20>0,(IF(ISBLANK(F20),\"Vul levensduur in\",-PMT(Uitgangspunten!$B$7,'TCO zonder verduurzaming'!F20,'TCO zonder verduurzaming'!E20)*F20-E20)),0)","v":0},"Vul levensduur in"]
[null,null,null,null,0,null,{"$f":"IF(E21>0,(IF(ISBLANK(F21),\"Vul levensduur in\",-PMT(Uitgangspunten!$B$7,'TCO zonder verduurzaming'!F21,'TCO zonder verduurzaming'!E21)*F21-E21)),0)","v":0},"Vul levensduur in"]
[null,null,null,null,0,null,{"$f":"IF(E22>0,(IF(ISBLANK(F22),\"Vul levensduur in\",-PMT(Uitgangspunten!$B$7,'TCO zonder verduurzaming'!F22,'TCO zonder verduurzaming'!E22)*F22-E22)),0)","v":0},"Vul levensduur in"]
[null,null,null,null,0,null,{"$f":"IF(E23>0,(IF(ISBLANK(F23),\"Vul levensduur in\",-PMT(Uitgangspunten!$B$7,'TCO zonder verduurzaming'!F23,'TCO zonder verduurzaming'!E23)*F23-E23)),0)","v":0},"Vul levensduur in"]
[null,null,null,null,0,null,{"$f":"IF(E24>0,(IF(ISBLANK(F24),\"Vul levensduur in\",-PMT(Uitgangspunten!$B$7,'TCO zonder verduurzaming'!F24,'TCO zonder verduurzaming'!E24)*F24-E24)),0)","v":0},"Vul levensduur in"]
[null,null,null,null,0,null,{"$f":"IF(E25>0,(IF(ISBLANK(F25),\"Vul levensduur in\",-PMT(Uitgangspunten!$B$7,'TCO zonder verduurzaming'!F25,'TCO zonder verduurzaming'!E25)*F25-E25)),0)","v":0},"Vul levensduur in"]
[null,null,null,null,0,null,{"$f":"IF(E26>0,(IF(ISBLANK(F26),\"Vul levensduur in\",-PMT(Uitgangspunten!$B$7,'TCO zonder verduurzaming'!F26,'TCO zonder verduurzaming'!E26)*F26-E26)),0)","v":0},"Vul levensduur in"]
[null,null,null,null,0,null,{"$f":"IF(E27>0,(IF(ISBLANK(F27),\"Vul levensduur in\",-PMT(Uitgangspunten!$B$7,'TCO zonder verduurzaming'!F27,'TCO zonder verduurzaming'!E27)*F27-E27)),0)","v":0},"Vul levensduur in"]
[null,null,null,null,0,null,{"$f":"IF(E28>0,(IF(ISBLANK(F28),\"Vul levensduur in\",-PMT(Uitgangspunten!$B$7,'TCO zonder verduurzaming'!F28,'TCO zonder verduurzaming'!E28)*F28-E28)),0)","v":0},"Vul levensduur in"]
[null,null,null,null,0,null,{"$f":"IF(E29>0,(IF(ISBLANK(F29),\"Vul levensduur in\",-PMT(Uitgangspunten!$B$7,'TCO zonder verduurzaming'!F29,'TCO zonder verduurzaming'!E29)*F29-E29)),0)","v":0},"Vul levensduur in"]
[null,null,null,null,0,null,{"$f":"IF(E30>0,(IF(ISBLANK(F30),\"Vul levensduur in\",-PMT(Uitgangspunten!$B$7,'TCO zonder verduurzaming'!F30,'TCO zonder verduurzaming'!E30)*F30-E30)),0)","v":0},"Vul levensduur in"]
[null,null,null,null,0,null,{"$f":"IF(E31>0,(IF(ISBLANK(F31),\"Vul levensduur in\",-PMT(Uitgangspunten!$B$7,'TCO zonder verduurzaming'!F31,'TCO zonder verduurzaming'!E31)*F31-E31)),0)","v":0},"Vul levensduur in"]
[null,null,null,null,0,null,{"$f":"IF(E32>0,(IF(ISBLANK(F32),\"Vul levensduur in\",-PMT(Uitgangspunten!$B$7,'TCO zonder verduurzaming'!F32,'TCO zonder verduurzaming'!E32)*F32-E32)),0)","v":0},"Vul levensduur in"]
[null,"Subtotaal investeringen in installaties",{"$f":"SUM(C8:C32)","v":0},{"$f":"SUM(D8:D32)","v":0},{"$f":"SUM(E8:E32)","v":0},"Subtotaal per jaar",{"$f":"SUM(G8:G32)","v":0},{"$f":"SUM(H8:H32)","v":0}]
["Stap 3","Bouwkundige vervangingsinvesteringen","Kosten materiaal & materieel","Arbeidskosten","Subtotaal","Levensduur in jaren","Rentekosten totaal","Kosten per jaar"]
[null,null,null,null,{"$f":"SUM(C35:D35)","v":0},null,{"$f":"IF(E35>0,(IF(ISBLANK(F35),\"Vul levensduur in\",-PMT(Uitgangspunten!$B$7,'TCO zonder verduurzaming'!F35,'TCO zonder verduurzaming'!E35)*F35-E35)),0)","v":0},{"$f":"IF(ISBLANK(F35),\"Vul levensduur in\",(E35+G35)/F35)","v":"Vul levensduur in"}]
[null,null,null,null,{"$f":"SUM(C36:D36)","v":0},null,{"$f":"IF(E36>0,(IF(ISBLANK(F36),\"Vul levensduur in\",-PMT(Uitgangspunten!$B$7,'TCO zonder verduurzaming'!F36,'TCO zonder verduurzaming'!E36)*F36-E36)),0)","v":0},{"$f":"IF(ISBLANK(F36),\"Vul levensduur in\",(E36+G36)/F36)","v":"Vul levensduur in"}]
[null,null,null,null,0,null,{"$f":"IF(E37>0,(IF(ISBLANK(F37),\"Vul levensduur in\",-PMT(Uitgangspunten!$B$7,'TCO zonder verduurzaming'!F37,'TCO zonder verduurzaming'!E37)*F37-E37)),0)","v":0},"Vul levensduur in"]
[null,null,null,null,0,null,{"$f":"IF(E38>0,(IF(ISBLANK(F38),\"Vul levensduur in\",-PMT(Uitgangspunten!$B$7,'TCO zonder verduurzaming'!F38,'TCO zonder verduurzaming'!E38)*F38-E38)),0)","v":0},"Vul levensduur in"]
[null,null,null,null,0,null,{"$f":"IF(E39>0,(IF(ISBLANK(F39),\"Vul levensduur in\",-PMT(Uitgangspunten!$B$7,'TCO zonder verduurzaming'!F39,'TCO zonder verduurzaming'!E39)*F39-E39)),0)","v":0},"Vul levensduur in"]
[null,null,null,null,0,null,{"$f":"IF(E40>0,(IF(ISBLANK(F40),\"Vul levensduur in\",-PMT(Uitgangspunten!$B$7,'TCO zonder verduurzaming'!F40,'TCO zonder verduurzaming'!E40)*F40-E40)),0)","v":0},"Vul levensduur in"]
[null,null,null,null,0,null,{"$f":"IF(E41>0,(IF(ISBLANK(F41),\"Vul levensduur in\",-PMT(Uitgangspunten!$B$7,'TCO zonder verduurzaming'!F41,'TCO zonder verduurzaming'!E41)*F41-E41)),0)","v":0},"Vul levensduur in"]
[null,null,null,null,0,null,{"$f":"IF(E42>0,(IF(ISBLANK(F42),\"Vul levensduur in\",-PMT(Uitgangspunten!$B$7,'TCO zonder verduurzaming'!F42,'TCO zonder verduurzaming'!E42)*F42-E42)),0)","v":0},"Vul levensduur in"]
[null,null,null,null,0,null,{"$f":"IF(E43>0,(IF(ISBLANK(F43),\"Vul levensduur in\",-PMT(Uitgangspunten!$B$7,'TCO zonder verduurzaming'!F43,'TCO zonder verduurzaming'!E43)*F43-E43)),0)","v":0},"Vul levensduur in"]
[null,null,null,null,0,null,{"$f":"IF(E44>0,(IF(ISBLANK(F44),\"Vul levensduur in\",-PMT(Uitgangspunten!$B$7,'TCO zonder verduurzaming'!F44,'TCO zonder verduurzaming'!E44)*F44-E44)),0)","v":0},"Vul levensduur in"]
[null,null,null,null,0,null,{"$f":"IF(E45>0,(IF(ISBLANK(F45),\"Vul levensduur in\",-PMT(Uitgangspunten!$B$7,'TCO zonder verduurzaming'!F45,'TCO zonder verduurzaming'!E45)*F45-E45)),0)","v":0},"Vul levensduur in"]
[null,null,null,null,0,null,{"$f":"IF(E46>0,(IF(ISBLANK(F46),\"Vul levensduur in\",-PMT(Uitgangspunten!$B$7,'TCO zonder verduurzaming'!F46,'TCO zonder verduurzaming'!E46)*F46-E46)),0)","v":0},"Vul levensduur in"]
[null,null,null,null,0,null,{"$f":"IF(E47>0,(IF(ISBLANK(F47),\"Vul levensduur in\",-PMT(Uitgangspunten!$B$7,'TCO zonder verduurzaming'!F47,'TCO zonder verduurzaming'!E47)*F47-E47)),0)","v":0},"Vul levensduur in"]
[null,null,null,null,0,null,{"$f":"IF(E48>0,(IF(ISBLANK(F48),\"Vul levensduur in\",-PMT(Uitgangspunten!$B$7,'TCO zonder verduurzaming'!F48,'TCO zonder verduurzaming'!E48)*F48-E48)),0)","v":0},"Vul levensduur in"]
[null,null,null,null,0,null,{"$f":"IF(E49>0,(IF(ISBLANK(F49),\"Vul levensduur in\",-PMT(Uitgangspunten!$B$7,'TCO zonder verduurzaming'!F49,'TCO zonder verduurzaming'!E49)*F49-E49)),0)","v":0},"Vul levensduur in"]
[null,null,null,null,0,null,{"$f":"IF(E50>0,(IF(ISBLANK(F50),\"Vul levensduur in\",-PMT(Uitgangspunten!$B$7,'TCO zonder verduurzaming'!F50,'TCO zonder verduurzaming'!E50)*F50-E50)),0)","v":0},"Vul levensduur in"]
[null,null,null,null,0,null,{"$f":"IF(E51>0,(IF(ISBLANK(F51),\"Vul levensduur in\",-PMT(Uitgangspunten!$B$7,'TCO zonder verduurzaming'!F51,'TCO zonder verduurzaming'!E51)*F51-E51)),0)","v":0},"Vul levensduur in"]
[null,null,null,null,0,null,{"$f":"IF(E52>0,(IF(ISBLANK(F52),\"Vul levensduur in\",-PMT(Uitgangspunten!$B$7,'TCO zonder verduurzaming'!F52,'TCO zonder verduurzaming'!E52)*F52-E52)),0)","v":0},"Vul levensduur in"]
[null,null,null,null,0,null,{"$f":"IF(E53>0,(IF(ISBLANK(F53),\"Vul levensduur in\",-PMT(Uitgangspunten!$B$7,'TCO zonder verduurzaming'!F53,'TCO zonder verduurzaming'!E53)*F53-E53)),0)","v":0},"Vul levensduur in"]
[null,null,null,null,0,null,{"$f":"IF(E54>0,(IF(ISBLANK(F54),\"Vul levensduur in\",-PMT(Uitgangspunten!$B$7,'TCO zonder verduurzaming'!F54,'TCO zonder verduurzaming'!E54)*F54-E54)),0)","v":0},"Vul levensduur in"]
[null,null,null,null,0,null,{"$f":"IF(E55>0,(IF(ISBLANK(F55),\"Vul levensduur in\",-PMT(Uitgangspunten!$B$7,'TCO zonder verduurzaming'!F55,'TCO zonder verduurzaming'!E55)*F55-E55)),0)","v":0},"Vul levensduur in"]
[null,null,null,null,0,null,{"$f":"IF(E56>0,(IF(ISBLANK(F56),\"Vul levensduur in\",-PMT(Uitgangspunten!$B$7,'TCO zonder verduurzaming'!F56,'TCO zonder verduurzaming'!E56)*F56-E56)),0)","v":0},"Vul levensduur in"]
[null,null,null,null,0,null,{"$f":"IF(E57>0,(IF(ISBLANK(F57),\"Vul levensduur in\",-PMT(Uitgangspunten!$B$7,'TCO zonder verduurzaming'!F57,'TCO zonder verduurzaming'!E57)*F57-E57)),0)","v":0},"Vul levensduur in"]
[null,null,null,null,0,null,{"$f":"IF(E58>0,(IF(ISBLANK(F58),\"Vul levensduur in\",-PMT(Uitgangspunten!$B$7,'TCO zonder verduurzaming'!F58,'TCO zonder verduurzaming'!E58)*F58-E58)),0)","v":0},"Vul levensduur in"]
[null,null,null,null,0,null,{"$f":"IF(E59>0,(IF(ISBLANK(F59),\"Vul levensduur in\",-PMT(Uitgangspunten!$B$7,'TCO zonder verduurzaming'!F59,'TCO zonder verduurzaming'!E59)*F59-E59)),0)","v":0},"Vul levensduur in"]
[null,"Subtotaal investeringen in bouwkundige maatregelen",{"$f":"SUM(C35:C59)","v":0},{"$f":"SUM(D35:D59)","v":0},{"$f":"SUM(E35:E59)","v":0},"Subtotaal per jaar",{"$f":"SUM(G35:G59)","v":0},{"$f":"SUM(H35:H59)","v":0}]
["Stap 4","Gemiddelde indirecte kosten per woning",null,null,"Subtotaal","Levensduur in jaren","Rentekosten totaal","Kosten per jaar"]
[null,"Onderzoek, ontwerp & projectontwikkelingskosten",null,null,null,{"$f":"+Uitgangspunten!$B$4","v":30},{"$f":"IF(E62>0,-PMT(Uitgangspunten!$B$7,'TCO zonder verduurzaming'!F62,'TCO zonder verduurzaming'!E62)*F62-E62,0)","v":0},{"$f":"IF(E62>0,((E62+G62)/F62),0)","v":0}]
[null,"Algemene bouwplaatskosten",null,null,0,{"$f":"+Uitgangspunten!$B$4","v":30},{"$f":"IF(E63>0,-PMT(Uitgangspunten!$B$7,'TCO zonder verduurzaming'!F63,'TCO zonder verduurzaming'!E63)*F63-E63,0)","v":0},0]
[null,"Coördinatiekosten",null,null,0,{"$f":"+Uitgangspunten!$B$4","v":30},{"$f":"IF(E64>0,-PMT(Uitgangspunten!$B$7,'TCO zonder verduurzaming'!F64,'TCO zonder verduurzaming'!E64)*F64-E64,0)","v":0},0]
[null,"Algemene kosten",null,null,0,{"$f":"+Uitgangspunten!$B$4","v":30},{"$f":"IF(E65>0,-PMT(Uitgangspunten!$B$7,'TCO zonder verduurzaming'!F65,'TCO zonder verduurzaming'!E65)*F65-E65,0)","v":0},0]
[null,"Verzekeringen",null,null,0,{"$f":"+Uitgangspunten!$B$4","v":30},{"$f":"IF(E66>0,-PMT(Uitgangspunten!$B$7,'TCO zonder verduurzaming'!F66,'TCO zonder verduurzaming'!E66)*F66-E66,0)","v":0},0]
[null,"Winst & risico",null,null,0,{"$f":"+Uitgangspunten!$B$4","v":30},{"$f":"IF(E67>0,-PMT(Uitgangspunten!$B$7,'TCO zonder verduurzaming'!F67,'TCO zonder verduurzaming'!E67)*F67-E67,0)","v":0},0]
[null,"Subtotaal indirecte kosten per woning",null,null,{"$f":"SUM(E62:E67)","v":0},"Subtotaal per jaar",{"$f":"SUM(G62:G67)","v":0},{"$f":"SUM(H62:H67)","v":0}]
["Stap 5","Gemiddelde bewonersbegeleidingskosten per woning",null,null,"Subtotaal","Levensduur in jaren","Rentekosten totaal","Kosten per jaar"]
[null,"Bewonerscommunicatie",null,null,0,{"$f":"+Uitgangspunten!$B$4","v":30},{"$f":"IF(E70>0,-PMT(Uitgangspunten!$B$7,'TCO zonder verduurzaming'!F70,'TCO zonder verduurzaming'!E70)*F70-E70,0)","v":0},{"$f":"IF(E70>0,((E70+G70)/F70),0)","v":0}]
[null,"Tijdelijke herhuisvestingskosten en/of bewonerscompensatie",null,null,0,{"$f":"+Uitgangspunten!$B$4","v":30},{"$f":"IF(E71>0,-PMT(Uitgangspunten!$B$7,'TCO zonder verduurzaming'!F71,'TCO zonder verduurzaming'!E71)*F71-E71,0)","v":0},{"$f":"IF(E71>0,((E71+G71)/F71),0)","v":0}]
[null,"Subtotaal bewonersbegeleidingskosten per woning",null,null,{"$f":"SUM(E70:E71)","v":0},"Subtotaal per jaar",{"$f":"SUM(G70:G71)","v":0},{"$f":"SUM(H70:H71)","v":0}]
[null,"Totale aanneemsom per woning",null,null,{"$f":"E33+E60+E68+E72","v":0},"Subtotaal per jaar",{"$f":"G33+G60+G68+G72","v":0},{"$f":"H33+H60+H68+H72","v":0}]
["Stap 6","Onderhoudskosten (exclusief vervanginginvesteringen) per woning"]
[null,"Installatietechnisch onderhoud voor alle aanwezige installaties per jaar ",null,null,null,null,null,0]
[null,"Bouwkundig onderhoud voor de complete woning per jaar",null,null,null,null,null,0]
[null,"Onderhoudskosten per woning per jaar (exclusief indexatie)",null,null,null,null,null,{"$f":"SUM(H75:H76)","v":0}]
[null,"Totale kosten per woning per jaar (inclusief BTW)",null,null,null,null,null,{"$f":"H73+H77","v":0}]
[]
[null,"Berekening bruto TCO per woning zonder verduurzaming"]
[null,"Bruto TCO per woning over totale periode",null,null,null,null,null,{"$f":"H82*Uitgangspunten!$B$4","v":0}]
[null,"Bruto TCO per woning per jaar",null,null,null,null,null,{"$f":"H78","v":0},"per jaar"]

{"sheet":"Uitgangspunten","index":2,"n_rows":22,"n_cols":2,"rows_kept":22,"cut":false,"hidden":false,"merged":[]}
[null,"Uitgangspunten bij TCO Meetlat Renovatieversneller"]
[]
[null,"Gehanteerde TCO looptijd in jaren"]
[null,30]
[]
[null,"Gehanteerde jaarrente"]
[null,0.01]
[]
[null,"Bij vervangingsinvesteringen"]
[null,"Na afloop van de economische levensduur van de installatie of constructie, wordt conservatief verondersteld dat de vervangingsinvestering dezelfde kostprijs kent. Eventuele kostendaling door opschaling en innovatie worden dus nog buiten beschouwing gelaten in de TCO berekening totdat deze 'hard' kunnen worden afgegeven."]
[]
[null,"Wat verstaan we onder netto warmtevraag?"]
[null,"Netto warmtevraag is de energie die nodig is voor de verwarming van de woning en wordt uitgedrukt in kWh per m2 vloeroppervlakte per jaar. De netto warmtevraag dient te worden vastgesteld met de nieuwe bepalingsmethode NTA8800, die per 1 januari 2021 van kracht worden. De belangrijkste software pakketten (o.a. VABI) zullen vanaf 1 juli 2020 de NTA8800 in hun rekenmethodiek verwerkt hebben. NB: de netto warmtevraag dient nadrukkelijk niet verward te worden met het totale energieverbruik, omdat het gebruikgebonden energieverbruik (o.a. warm water, verlichting en apparatuur) daarin niet is inbegrepen. De NTA8800 is gratis beschikbaar via NEN.nl."]
[]
[null,"Wat verstaan we onder verduurzaming?"]
[null,"Bouwkundige en/of installatietechnische maatregelen die bijdragen aan energiebesparing en CO2 reductie"]
[]
[null,"Wat verstaan we onder investeringskosten en indirecte kosten?"]
[null,"Bij het invullen van de eenmalige investeringskosten en indirecte kosten dient de NEN 2699-2017 norm gevolgd te worden: https://www.nen.nl/NEN-Shop/Norm/NEN-26992017-nl.htm. Eventuele andere subsidies (dan de Renovatieversneller subsidie)  waarvan men gebruik maakt dienen in mindering te worden gebracht op de ingevoerde kosten (dus netto kosten)."]
[]
[null,"Wat verstaan we onder onderhoudskosten?"]
[null,"Voor het invoeren van de jaarlijkse onderhoudskosten (exclusief vervangingsinvesteringen) dient bij het invullen van deze TCO meetlat de NEN 2776-2014 norm gevolgd te worden: https://www.nen.nl/NEN-Shop/Norm/NEN-27762014-nl.htm"]

{"sheet":"Sheet1","index":3,"n_rows":0,"n_cols":0,"rows_kept":0,"cut":false,"hidden":true,"merged":[]}